bitfinex/quotes_SOLUSD_20250527
["timestamp","ask_amount","ask_price","bid_price","bid_amount"]
[1748371279758,0.56167999,178.04,178.03,21.12007991]
[1748371280054,0.5615769,178.07,178.03,21.12007991]
[1748371280225,0.5615769,178.07,178.05,21.12007991]
[1748371280431,0.5615769,178.07,178.04,21.12007991]
[1748371280741,26.5615769,178.07,178.05,21.12007991]
[1748371281061,26.0,178.06,178.04,21.12007991]
[1748371282161,26.5615769,178.07,178.05,21.12007991]
[1748371283335,26.0,178.07,178.06,21.12007991]
[1748371283529,26.56154661,178.08,178.06,21.12007991]
[1748371285425,27.96541004,178.08,178.02,89.0]
[1748371285633,27.96541004,178.08,178.06,21.12007991]
[1748371285634,26.56154661,178.08,178.06,21.12007991]
[1748371286258,26.56154661,178.08,178.05,21.12007991]
[1748371287440,49.08548995,178.08,178.03,21.12007991]
[1748371287637,27.96541004,178.08,178.04,21.12007991]
[1748371291835,26.56154661,178.08,178.04,21.12007991]
[1748371292055,26.56154661,178.08,178.05,21.12007991]
[1748371292256,26.56154661,178.08,178.06,21.12007991]
[1748371292443,0.56154661,178.08,178.06,21.12007991]
[1748371294063,0.56151384,178.09,178.06,21.12007991]
[1748371295764,0.56151384,178.09,178.02,125.88]
[1748371296072,0.56151384,178.09,178.06,21.12007991]
[1748371296465,26.0,178.06,177.92,6.593]
[1748371296673,50.59023684,178.09,177.92,6.593]
[1748371296674,18.64964886,177.98,177.92,6.593]
[1748371296839,21.12007991,177.97,177.92,27.71307991]
[1748371297188,21.12007991,178.0,177.95,21.12007991]
[1748371297338,26.0,177.98,177.95,21.12007991]
[1748371297545,26.0,177.98,177.96,21.12007991]
[1748371298241,0.56189245,177.97,177.96,21.12007991]
[1748371298862,0.56182931,177.99,177.96,21.12007991]
[1748371299070,0.56182931,177.99,177.98,21.12007991]
[1748371300443,0.56176619,178.01,177.98,21.12007991]
[1748371300659,0.56176619,178.01,178.0,21.12007991]
[1748371302583,1.40431265,178.03,178.0,21.12007991]
[1748371302890,0.56163998,178.05,178.02,21.12007991]
[1748371303071,0.56163998,178.05,178.04,21.12007991]
[1748371303266,1.96573995,178.05,178.03,21.12007991]
[1748371303466,1.96573995,178.05,178.02,21.12007991]
[1748371304257,1.96573995,178.05,178.03,21.12007991]
[1748371304551,1.40409997,178.05,178.03,21.12007991]
[1748371305256,1.40409997,178.05,178.02,21.12007991]
[1748371305865,1.40409997,178.05,178.0,43.1848]
[1748371306059,1.40409997,178.05,178.02,21.12007991]
[1748371306860,1.40409997,178.05,178.03,21.12007991]
[1748371308090,0.56160844,178.06,178.04,21.12007991]
[1748371309273,1.96543396,178.08,178.04,21.12007991]
[1748371309471,23.08551387,178.08,178.0,132.1848]
[1748371309661,23.08551387,178.08,178.04,21.12007991]
[1748371309862,23.08551387,178.08,178.0,132.1848]
[1748371309863,23.08551387,178.08,178.03,21.12007991]
[1748371310464,1.96543396,178.08,178.04,21.12007991]
[1748371310773,1.96543396,178.08,178.0,132.1848]
[1748371310774,1.96543396,178.08,178.06,21.12007991]
[1748371311285,1.40388859,178.08,178.05,21.12007991]
[1748371313991,1.40388859,178.08,178.03,21.12007991]
[1748371313992,22.5239685,178.08,178.03,21.12007991]
[1748371314195,1.40388859,178.08,178.04,21.12007991]
[1748371314571,1.40388859,178.08,178.02,36.4]
[1748371314779,1.40388859,178.08,178.04,21.12007991]
[1748371315594,1.96543396,178.08,178.04,21.12007991]
[1748371316391,23.08551387,178.08,178.02,125.4]
[1748371316600,1.96543396,178.08,178.04,21.12007991]
[1748371316903,1.96543396,178.08,178.05,21.12007991]
[1748371320877,1.40388859,178.08,178.05,21.12007991]
[1748371321078,1.40388859,178.08,178.06,21.12007991]
[1748371321280,0.56151384,178.09,178.02,293.22007991]
[1748371321581,0.56138775,178.13,178.08,21.12007991]
[1748371321883,0.56138775,178.13,178.1,21.12007991]
[1748371324199,0.56138775,178.13,178.11,21.12007991]
[1748371324383,0.56138775,178.13,178.1,21.12007991]
[1748371324570,0.56138775,178.13,178.11,21.12007991]
[1748371324909,26.0,178.16,178.12,21.12007991]
[1748371324910,0.56132472,178.15,178.12,21.12007991]
[1748371325881,0.56132472,178.15,178.13,21.12007991]
[1748371326784,0.56129321,178.16,178.13,21.12007991]
[1748371327274,0.56129321,178.16,178.14,21.12007991]
[1748371328473,1.40320383,178.17,178.14,21.12007991]
[1748371328978,1.40320383,178.17,178.11,36.2]
[1748371329191,1.40320383,178.17,178.13,21.12007991]
[1748371329504,1.40320383,178.17,178.11,36.2]
[1748371329802,21.12007991,178.15,178.11,21.12007991]
[1748371330032,1.40320383,178.17,178.12,21.12007991]
[1748371330183,1.40320383,178.17,178.13,21.12007991]
[1748371330703,23.08454545,178.17,178.12,21.12007991]
[1748371330905,39.76972877,178.16,178.11,21.12007991]
[1748371332400,1.96463653,178.15,178.11,21.12007991]
[1748371333599,1.96463653,178.15,178.12,21.12007991]
[1748371338015,1.96463653,178.15,178.1,36.12]
[1748371338208,1.96463653,178.15,178.12,21.12007991]
[1748371339245,1.96463653,178.15,178.1,36.12]
[1748371339246,23.08471644,178.15,178.1,36.12]
[1748371339536,18.64964886,178.1,178.03,89.0]
[1748371339734,21.12007991,178.07,178.02,136.12007991]
[1748371340936,21.12007991,178.07,178.02,110.12007991]
[1748371341110,21.12007991,178.07,178.02,172.16007991]
[1748371341427,0.56160844,178.06,178.02,172.16007991]
[1748371342620,0.56160844,178.06,178.03,21.12007991]
[1748371344216,0.5615769,178.07,178.03,21.12007991]
[1748371344419,1.96551916,178.07,178.03,21.12007991]
[1748371345439,1.96551916,178.07,178.02,125.02]
[1748371345611,1.96551916,178.07,178.04,21.12007991]
[1748371346612,1.40394226,178.07,178.03,21.12007991]
[1748371347112,0.56151384,178.09,178.05,21.12007991]
[1748371347313,21.12007991,178.07,178.01,1.5807]
[1748371347536,21.12007991,178.07,178.02,35.96]
[1748371347740,21.12007991,178.05,178.0,6.5463]
[1748371347911,21.12007991,178.03,177.99,10.0]
[1748371348115,21.12007991,178.05,177.99,31.12007991]
[1748371348335,18.64964886,178.04,177.99,31.12007991]
[1748371348734,0.56170308,178.03,178.0,21.12007991]
[1748371349058,0.56170308,178.03,177.99,10.0]
[1748371349415,0.56170308,178.03,178.0,21.12007991]
[1748371350081,0.56170308,178.03,178.01,21.12007991]
[1748371350830,1.96578072,178.05,178.01,21.12007991]
[1748371354446,23.08586063,178.05,178.0,21.12007991]
[1748371354818,21.12007991,178.02,177.99,10.0]
[1748371355019,21.12007991,178.02,177.98,115.0]
[1748371356449,0.56176619,178.01,177.98,115.0]
[1748371357138,0.56176619,178.01,177.98,89.0]
[1748371357726,0.56176619,178.01,177.98,110.12007991]
[1748371358250,1.9660932,178.02,177.98,110.12007991]
[1748371359044,21.12007991,178.01,177.96,42.5626]
[1748371359244,21.12007991,178.01,177.96,63.68267991]
[1748371359448,21.12007991,178.01,177.96,42.5626]
[1748371359627,1.9660932,178.02,177.97,21.12007991]
[1748371359628,23.08617311,178.02,177.97,21.12007991]
[1748371359944,23.08617311,178.02,177.96,42.5626]
[1748371360147,23.08617311,178.02,177.97,21.12007991]
[1748371361154,21.12007991,178.01,177.96,27.70267991]
[1748371361319,21.12007991,178.01,177.96,63.64267991]
[1748371362235,0.56179775,178.0,177.96,63.64267991]
[1748371363242,0.56179775,178.0,177.96,152.62267991]
[1748371364056,0.56179775,178.0,177.97,21.12007991]
[1748371364427,0.56179775,178.0,177.96,152.62267991]
[1748371365029,0.56179775,178.0,177.97,21.12007991]
[1748371366056,0.56173463,178.02,177.99,21.12007991]
[1748371366756,0.56173463,178.02,178.0,21.12007991]
[1748371366932,0.56173463,178.02,178.0,57.00007991]
[1748371367637,0.56167153,178.04,178.0,57.00007991]
[1748371372446,0.56167153,178.04,178.01,21.12007991]
[1748371375939,0.56167153,178.04,178.02,21.12007991]
[1748371377241,0.56163998,178.05,178.02,21.12007991]
[1748371380173,21.68171989,178.05,178.0,100.4396]
[1748371380350,21.68171989,178.05,178.01,21.12007991]
[1748371381057,1.96573995,178.05,178.01,21.12007991]
[1748371382361,1.96573995,178.05,178.02,21.12007991]
[1748371383076,0.56163998,178.05,178.03,21.12007991]
[1748371383774,0.5615769,178.07,178.03,21.12007991]
[1748371383976,0.5615769,178.07,178.04,56.74007991]
[1748371384545,0.5615769,178.07,178.04,35.62]
[1748371384975,0.5615769,178.07,177.92,21.12007991]
[1748371384976,18.64964886,178.02,177.92,21.12007991]
[1748371385156,21.12007991,177.97,177.92,21.12007991]
[1748371385366,18.64964886,178.02,177.92,47.12007991]
[1748371385563,21.12007991,177.97,177.92,47.12007991]
[1748371385776,21.68200393,177.96,177.92,47.12007991]
[1748371386778,0.56192402,177.96,177.93,21.12007991]
[1748371387770,1.9666312,177.97,177.92,26.0]
[1748371387960,1.9666312,177.97,177.93,47.12007991]
[1748371388176,23.08671111,177.97,177.93,26.0]
[1748371388854,1.9666312,177.97,177.93,26.0]
[1748371389068,23.08671111,177.97,177.93,26.0]
[1748371391376,23.08671111,177.97,177.92,21.12007991]
[1748371391679,21.12007991,177.96,177.91,82.80007991]
[1748371391876,0.56205035,177.92,177.91,26.0]
[1748371392456,21.68213026,177.92,177.89,35.88]
[1748371392870,21.68213026,177.92,177.89,9.88]
[1748371393056,21.12007991,177.91,177.89,9.88]
[1748371393256,21.12007991,177.91,177.89,35.88]
[1748371393878,18.64964886,177.92,177.89,35.88]
[1748371394079,39.76972877,177.92,177.89,35.88]
[1748371394283,21.68213026,177.92,177.89,35.88]
[1748371394466,0.56205035,177.92,177.89,35.88]
[1748371395281,21.12007991,177.94,177.9,21.12007991]
[1748371395884,0.56201877,177.93,177.89,57.00007991]
[1748371396175,0.56201877,177.93,177.89,35.88]
[1748371396374,21.68209868,177.93,177.89,35.88]
[1748371399454,0.56201877,177.93,177.89,57.00007991]
[1748371399884,0.56201877,177.93,177.89,35.88]
[1748371400087,21.12007991,177.93,177.89,57.00007991]
[1748371400386,21.12007991,177.94,177.9,21.12007991]
[1748371400983,0.56201877,177.93,177.9,21.12007991]
[1748371401684,20.05447985,177.96,177.89,35.88]
[1748371401685,0.56197902,177.95,177.92,47.12007991]
[1748371401875,0.56197902,177.95,177.94,21.12007991]
[1748371403487,18.64964886,178.02,177.95,26.0]
[1748371403674,1.40429968,178.03,177.99,21.12007991]
[1748371404481,1.40429968,178.03,178.0,21.12007991]
[1748371404683,1.40429968,178.03,177.99,21.12007991]
[1748371405491,1.96600276,178.03,177.99,21.12007991]
[1748371406201,1.96600276,178.03,178.0,21.12007991]
[1748371406415,0.56170308,178.03,178.01,21.12007991]
[1748371406770,0.56170308,178.03,178.0,21.12007991]
[1748371407975,21.12007991,178.05,178.0,21.12007991]
[1748371407976,0.56167153,178.04,178.0,21.12007991]
[1748371408391,0.56167153,178.04,178.01,21.12007991]
[1748371409185,0.56167153,178.04,178.02,21.12007991]
[1748371410394,20.05372522,178.06,178.02,21.12007991]
[1748371410395,0.56163998,178.05,178.02,21.12007991]
[1748371410595,0.56163998,178.05,178.03,21.12007991]
[1748371411266,0.56163998,178.05,178.02,21.12007991]
[1748371411473,0.56163998,178.05,178.02,47.12007991]
[1748371411783,0.56163998,178.05,178.03,21.12007991]
[1748371412278,1.40407636,178.06,178.03,21.12007991]
[1748371412485,1.40407636,178.06,178.02,47.12007991]
[1748371412690,1.40407636,178.06,178.03,21.12007991]
[1748371414919,1.40407636,178.06,178.02,47.12007991]
[1748371416476,1.9656848,178.06,178.02,47.12007991]
[1748371417378,21.12007991,178.03,177.98,9.68]
[1748371417649,21.12007991,178.02,177.97,47.12007991]
[1748371418179,21.12007991,178.01,177.95,35.52]
[1748371418407,21.12007991,178.01,177.96,21.12007991]
[1748371418587,1.96629213,178.0,177.97,21.12007991]
[1748371419613,0.56179775,178.0,177.99,21.12007991]
[1748371420590,1.96601155,178.03,177.99,21.12007991]
[1748371421201,1.96601155,178.03,178.0,21.12007991]
[1748371421421,1.96601155,178.03,178.01,21.12007991]
[1748371421616,1.96601155,178.03,178.0,21.12007991]
[1748371422905,1.40430847,178.03,178.0,21.12007991]
[1748371424499,1.40430847,178.03,177.98,115.0]
[1748371424706,1.40430847,178.03,178.0,21.12007991]
[1748371424907,0.56167153,178.04,178.01,21.12007991]
[1748371425318,0.56167153,178.04,178.02,21.12007991]
[1748371425802,0.56167153,178.04,178.01,89.0]
[1748371425803,0.56167153,178.04,178.03,21.12007991]
[1748371426019,0.56167153,178.04,178.02,21.12007991]
[1748371426907,0.56163998,178.05,178.02,21.12007991]
[1748371427622,0.56163998,178.05,178.03,21.12007991]
[1748371427795,0.56163998,178.05,178.04,21.12007991]
[1748371428002,0.56154537,178.08,178.04,21.12007991]
[1748371428332,0.56154537,178.08,178.05,21.12007991]
[1748371429036,1.40379866,178.09,178.05,21.12007991]
[1748371430507,1.40379866,178.09,178.06,21.12007991]
[1748371431126,1.9653125,178.09,178.05,21.12007991]
[1748371432229,23.08539241,178.09,178.04,21.12007991]
[1748371432410,23.08539241,178.09,178.05,21.12007991]
[1748371433012,1.9653125,178.09,178.05,21.12007991]
[1748371436340,1.9653125,178.09,178.06,21.12007991]
[1748371436507,0.56151384,178.09,178.06,21.12007991]
[1748371437537,0.56151384,178.09,178.07,21.12007991]
[1748371437704,0.56145078,178.11,178.08,27.45917991]
[1748371437908,0.56145078,178.11,178.1,21.12007991]
[1748371438131,0.56135623,178.14,178.1,21.12007991]
[1748371439111,1.96474682,178.14,178.1,21.12007991]
[1748371439310,1.96474682,178.14,178.11,21.12007991]
[1748371439519,1.96474682,178.14,178.12,21.12007991]
[1748371440441,1.96474682,178.14,178.09,26.0]
[1748371440643,21.12007991,178.12,178.07,124.58]
[1748371440819,18.64964886,178.11,178.07,145.70007991]
[1748371441023,18.64964886,178.11,178.07,56.70007991]
[1748371441217,0.56148231,178.1,178.07,47.12007991]
[1748371441625,0.56138775,178.13,178.09,21.12007991]
[1748371441821,1.96485712,178.13,178.1,21.12007991]
[1748371442146,41.73458589,178.13,178.08,21.12007991]
[1748371443439,20.61450598,178.13,178.09,21.12007991]
[1748371444218,1.96485712,178.13,178.09,21.12007991]
[1748371444428,23.08493703,178.13,178.07,115.0]
[1748371444737,1.96485712,178.13,178.09,21.12007991]
[1748371445341,1.96485712,178.13,178.07,115.0]
[1748371445509,23.08493703,178.13,178.08,21.12007991]
[1748371445707,1.96485712,178.13,178.09,21.12007991]
[1748371447828,0.56138775,178.13,178.12,21.12007991]
[1748371448015,0.56138775,178.13,178.08,35.48]
[1748371448016,0.56138775,178.13,178.11,21.12007991]
[1748371449059,0.56132472,178.15,178.12,21.12007991]
[1748371449213,0.56132472,178.15,178.13,21.12007991]
[1748371449414,0.56132472,178.15,178.1,121.1158]
[1748371449839,0.56126171,178.17,178.13,21.12007991]
[1748371450050,23.08449591,178.17,178.13,21.12007991]
[1748371450734,0.56126171,178.17,178.15,21.12007991]
[1748371451239,0.56126171,178.17,178.14,21.12007991]
[1748371451616,0.56126171,178.17,178.16,21.12007991]
[1748371451816,1.9640337,178.21,178.16,21.12007991]
[1748371452033,1.9640337,178.21,178.13,1.5121]
[1748371452034,23.08411361,178.21,178.17,21.12007991]
[1748371452337,23.08411361,178.21,178.16,21.12007991]
[1748371452543,1.9640337,178.21,178.17,21.12007991]
[1748371452955,1.9640337,178.21,178.18,21.12007991]
[1748371453327,0.56113573,178.21,178.19,21.12007991]
[1748371453530,0.56113573,178.21,178.2,21.12007991]
[1748371453732,0.56113573,178.21,178.16,35.48]
[1748371453733,0.56113573,178.21,178.19,21.12007991]
[1748371453936,20.61340355,178.23,178.2,21.12007991]
[1748371455558,0.56107277,178.23,178.22,21.12007991]
[1748371455735,0.56100981,178.25,178.22,21.12007991]
[1748371455945,0.56100981,178.25,178.24,21.12007991]
[1748371456950,1.40248852,178.26,178.23,21.12007991]
[1748371459138,1.40248852,178.26,178.24,21.12007991]
[1748371463159,0.56091541,178.28,178.25,21.12007991]
[1748371463347,0.56091541,178.28,178.27,21.12007991]
[1748371464072,1.40226095,178.29,178.27,21.12007991]
[1748371464362,18.64964886,178.28,178.25,21.12007991]
[1748371465451,1.40226095,178.29,178.24,6.6626]
[1748371465452,1.40226095,178.29,178.26,21.12007991]
[1748371466737,1.40226095,178.29,178.27,21.12007991]
[1748371467440,20.05190981,178.29,178.26,21.12007991]
[1748371468038,20.61279376,178.29,178.26,21.12007991]
[1748371469564,20.61279376,178.29,178.25,21.12007991]
[1748371475843,18.64964886,178.28,178.24,110.12007991]
[1748371476047,39.76972877,178.28,178.24,89.0]
[1748371476452,21.12007991,178.26,178.24,89.0]
[1748371476675,39.76972877,178.25,178.24,89.0]
[1748371476844,18.64964886,178.24,178.2,126.31647991]
[1748371477047,0.56107277,178.23,178.2,16.1964]
[1748371477275,0.56107277,178.23,178.2,9.56]
[1748371477642,21.12007991,178.22,178.17,21.12007991]
[1748371478975,18.64964886,178.22,178.18,21.12007991]
[1748371479174,0.56113573,178.21,178.18,21.12007991]
[1748371479876,0.56113573,178.21,178.19,21.12007991]
[1748371480069,0.56113573,178.21,178.18,21.12007991]
[1748371481867,22.52276183,178.23,178.16,43.1228]
[1748371481868,0.56110425,178.22,178.16,43.1228]
[1748371482077,23.08394479,178.22,178.17,21.12007991]
[1748371482573,1.96386488,178.22,178.18,21.12007991]
[1748371483775,0.56110425,178.22,178.19,47.12007991]
[1748371484281,0.56110425,178.22,178.19,26.0]
[1748371485449,0.56110425,178.22,178.16,132.1228]
[1748371485450,18.64964886,178.21,178.17,26.0]
[1748371485651,21.12007991,178.2,178.16,43.1228]
[1748371486188,21.12007991,178.2,178.15,56.68007991]
[1748371486357,21.12007991,178.2,178.15,92.12007991]
[1748371487275,1.96419552,178.19,178.15,56.68007991]
[1748371488353,1.96419552,178.19,178.16,21.12007991]
[1748371489278,1.40276491,178.22,178.18,47.12007991]
[1748371490579,1.96386916,178.22,178.18,47.12007991]
[1748371492691,1.96386916,178.22,178.19,21.12007991]
[1748371493562,1.40276491,178.22,178.19,21.12007991]
[1748371493777,21.6811212,178.24,178.19,21.12007991]
[1748371494467,23.08372443,178.24,178.19,21.12007991]
[1748371494971,1.96364452,178.24,178.2,21.12007991]
[1748371500085,1.40260323,178.24,178.2,21.12007991]
[1748371503892,1.96364452,178.24,178.19,6.2033]
[1748371504067,1.96364452,178.24,178.2,21.12007991]
[1748371506697,0.56088395,178.29,178.23,47.12007991]
[1748371506995,0.56088395,178.29,178.26,21.12007991]
[1748371507372,0.56088395,178.29,178.25,21.12007991]
[1748371508493,23.08317374,178.29,178.24,56.54007991]
[1748371508685,1.96309383,178.29,178.25,21.12007991]
[1748371508883,0.56088395,178.29,178.25,21.12007991]
[1748371509577,0.56088395,178.29,178.26,21.12007991]
[1748371509772,21.68096386,178.29,178.24,35.42]
[1748371510080,21.68102678,178.27,178.23,150.42]
[1748371510284,21.12007991,178.26,178.23,89.0]
[1748371510485,18.64964886,178.23,178.15,21.12007991]
[1748371510676,18.64964886,178.23,178.16,26.0]
[1748371510677,21.12007991,178.2,178.16,26.0]
[1748371510873,21.12007991,178.21,178.16,47.12007991]
[1748371511099,21.12007991,178.21,178.17,21.12007991]
[1748371512204,0.56116722,178.2,178.17,21.12007991]
[1748371513000,21.12007991,178.24,178.19,21.12007991]
[1748371513303,21.12007991,178.21,178.16,47.12007991]
[1748371514087,18.64964886,178.22,178.17,21.12007991]
[1748371514288,39.76972877,178.22,178.17,21.12007991]
[1748371517309,1.96397507,178.21,178.17,21.12007991]
[1748371517501,1.96397507,178.21,178.16,47.12007991]
[1748371517502,23.08405498,178.21,178.16,47.12007991]
[1748371522707,1.96397507,178.21,178.16,47.12007991]
[1748371522888,23.08405498,178.21,178.16,47.12007991]
[1748371525599,1.96397507,178.21,178.16,47.12007991]
[1748371525799,21.12007991,178.18,178.14,9.54]
[1748371525998,21.12007991,178.16,178.14,9.54]
[1748371526208,21.12007991,178.16,178.12,56.52007991]
[1748371526384,21.12007991,178.16,178.12,21.12007991]
[1748371527013,0.56132472,178.15,178.13,21.12007991]
[1748371527406,26.0,178.23,178.14,21.12007991]
[1748371527607,21.12007991,178.19,178.14,21.12007991]
[1748371529207,21.12007991,178.17,178.13,35.4]
[1748371529608,21.12007991,178.17,178.12,21.12007991]
[1748371529911,21.12007991,178.16,178.11,136.12007991]
[1748371530114,21.12007991,178.15,178.11,115.0]
[1748371530413,21.12007991,178.14,178.1,27.77077991]
[1748371530918,21.12007991,178.16,178.11,21.12007991]
[1748371531097,0.56129321,178.16,178.12,21.12007991]
[1748371531422,23.08460616,178.16,178.11,21.12007991]
[1748371532808,1.96452625,178.16,178.12,21.12007991]
[1748371533139,1.96452625,178.16,178.13,21.12007991]
[1748371533298,0.56129321,178.16,178.15,21.12007991]
[1748371534019,0.56129321,178.16,178.14,21.12007991]
[1748371534405,0.56104129,178.24,178.17,6.0372]
[1748371534611,0.56104129,178.24,178.22,21.12007991]
[1748371534817,0.56094687,178.27,178.23,21.12007991]
[1748371535232,26.0,178.22,178.12,6.0372]
[1748371535520,21.12007991,178.2,178.15,21.12007991]
[1748371535816,21.12007991,178.21,178.16,21.12007991]
[1748371536321,0.56116722,178.2,178.16,21.12007991]
[1748371536521,0.56116722,178.2,178.15,21.12007991]
[1748371537508,21.68124713,178.2,178.15,21.12007991]
[1748371538028,21.68124713,178.2,178.14,21.12007991]
[1748371538320,21.12007991,178.17,178.13,35.4]
[1748371538911,0.56116722,178.2,178.15,21.12007991]
[1748371539311,21.68124713,178.2,178.14,21.12007991]
[1748371539619,23.08416519,178.2,178.14,21.12007991]
[1748371539823,21.12007991,178.19,178.13,56.52007991]
[1748371540414,0.56123021,178.18,178.13,56.52007991]
[1748371540624,23.08438566,178.18,178.13,35.4]
[1748371542006,23.08438566,178.18,178.13,56.52007991]
[1748371542930,1.96430575,178.18,178.13,56.52007991]
[1748371544002,1.96430575,178.18,178.12,41.4372]
[1748371544003,21.12007991,178.17,178.12,41.4372]
[1748371544822,21.12007991,178.17,178.12,6.0372]
[1748371545328,21.12007991,178.17,178.12,27.15727991]
[1748371545705,0.56129321,178.16,178.12,27.15727991]
[1748371546302,1.96452625,178.16,178.12,6.0372]
[1748371547907,1.96452625,178.16,178.12,27.15727991]
[1748371551007,1.40323304,178.16,178.12,27.15727991]
[1748371551831,1.40323304,178.16,178.12,21.12007991]
[1748371552130,1.96452625,178.16,178.12,21.12007991]
[1748371553241,1.40323304,178.16,178.12,21.12007991]
[1748371554429,1.40323304,178.16,178.11,89.0]
[1748371554430,22.52331295,178.16,178.11,110.12007991]
[1748371554739,39.76972877,178.15,178.11,89.0]
[1748371554925,21.12007991,178.13,178.1,9.54]
[1748371555122,18.64964886,178.15,178.08,21.12007991]
[1748371555319,18.64964886,178.12,178.09,21.12007991]
[1748371555736,18.64964886,178.12,178.06,35.38]
[1748371555906,18.64964886,178.12,178.05,9.52]
[1748371555907,21.12007991,178.1,178.05,9.52]
[1748371556108,21.12007991,178.1,178.05,21.12007991]
[1748371556536,0.56151384,178.09,178.06,21.12007991]
[1748371556736,0.56147826,178.11,178.08,21.12007991]
[1748371556938,0.56147826,178.11,178.1,21.12007991]
[1748371557739,0.56147826,178.11,178.09,21.12007991]
[1748371558039,1.96490192,178.13,178.09,21.12007991]
[1748371558237,1.96490192,178.13,178.1,21.12007991]
[1748371559309,0.56138775,178.13,178.1,21.12007991]
[1748371561243,0.56138775,178.13,178.11,21.12007991]
[1748371561449,0.56138775,178.13,178.1,21.12007991]
[1748371563650,0.56138775,178.13,178.11,21.12007991]
[1748371563856,20.05307439,178.14,178.11,21.12007991]
[1748371563857,0.56129321,178.16,178.12,21.12007991]
[1748371564072,0.56129321,178.16,178.15,21.12007991]
[1748371564258,0.56123021,178.18,178.15,21.12007991]
[1748371564470,0.56123021,178.18,178.16,21.12007991]
[1748371564634,0.56123021,178.18,178.15,21.12007991]
[1748371565453,0.56123021,178.18,178.11,41.6141]
[1748371565454,23.08438566,178.18,178.11,41.6141]
[1748371565657,23.08438566,178.18,178.13,21.12007991]
[1748371565967,1.96430575,178.18,178.14,21.12007991]
[1748371567142,1.96430575,178.18,178.15,21.12007991]
[1748371568971,0.56123021,178.18,178.15,21.12007991]
[1748371571847,0.56123021,178.18,178.16,21.12007991]
[1748371572946,1.96430575,178.18,178.14,21.12007991]
[1748371573452,1.96430575,178.18,178.15,21.12007991]
[1748371574048,1.40307554,178.18,178.15,21.12007991]
[1748371575297,0.56119872,178.19,178.15,21.12007991]
[1748371579167,0.56119872,178.19,178.16,21.12007991]
[1748371579549,0.56116722,178.2,178.18,21.12007991]
[1748371579745,1.96408528,178.2,178.17,21.12007991]
[1748371579943,18.64964886,178.19,178.17,21.12007991]
[1748371581170,18.64964886,178.19,178.18,21.12007991]
[1748371582055,19.21084758,178.19,178.18,21.12007991]
[1748371582351,19.21084758,178.19,178.17,21.12007991]
[1748371584770,0.56119872,178.19,178.18,21.12007991]
[1748371586058,0.56113573,178.21,178.18,21.12007991]
[1748371586749,1.96397507,178.21,178.17,21.12007991]
[1748371588688,0.56119872,178.19,178.17,21.12007991]
[1748371589659,1.96419552,178.19,178.15,21.12007991]
[1748371591257,18.64964886,178.18,178.11,15.7541]
[1748371591458,18.64964886,178.18,178.13,21.12007991]
[1748371591875,1.96419552,178.19,178.16,21.12007991]
[1748371592079,1.96419552,178.19,178.17,21.12007991]
[1748371593358,1.96419552,178.19,178.16,21.12007991]
[1748371596594,0.56126171,178.17,178.16,21.12007991]
[1748371596964,1.964416,178.17,178.14,21.12007991]
[1748371600991,1.964416,178.17,178.15,21.12007991]
[1748371601394,0.56126171,178.17,178.16,21.12007991]
[1748371601963,0.56126171,178.17,178.15,21.12007991]
[1748371602192,0.56126171,178.17,178.14,21.12007991]
[1748371602386,0.56126171,178.17,178.15,21.12007991]
[1748371603100,1.40315429,178.17,178.15,21.12007991]
[1748371603574,1.96419552,178.19,178.16,21.12007991]
[1748371603764,1.96419552,178.19,178.18,21.12007991]
[1748371607295,0.56119872,178.19,178.18,21.12007991]
[1748371608988,0.56113573,178.21,178.18,21.12007991]
[1748371609202,0.56113573,178.21,178.2,21.12007991]
[1748371609506,20.74466114,178.24,178.2,21.12007991]
[1748371609717,1.40254756,178.25,178.23,21.12007991]
[1748371611105,0.56097834,178.26,178.23,21.12007991]
[1748371611904,0.56097834,178.26,178.24,21.12007991]
[1748371613179,0.56088395,178.29,178.25,21.12007991]
[1748371613380,19.21043845,178.32,178.28,21.12007991]
[1748371613597,19.21043845,178.32,178.3,21.12007991]
[1748371613787,0.56078959,178.32,178.31,21.12007991]
[1748371614698,0.5607267,178.34,178.31,21.12007991]
[1748371615003,0.5607267,178.34,178.32,21.12007991]
[1748371615929,0.5607267,178.34,178.33,21.12007991]
[1748371616083,0.56060096,178.38,178.33,21.12007991]
[1748371616282,0.56060096,178.38,178.36,21.12007991]
[1748371616932,0.56060096,178.38,178.37,21.12007991]
[1748371617607,0.56050669,178.41,178.37,21.12007991]
[1748371617784,0.56050669,178.41,178.4,21.12007991]
[1748371619114,1.40121326,178.42,178.4,21.12007991]
[1748371619308,0.56041246,178.44,178.41,21.12007991]
[1748371619517,0.56041246,178.44,178.43,21.12007991]
[1748371620911,1.96144361,178.44,178.42,21.12007991]
[1748371621117,1.96144361,178.44,178.4,21.12007991]
[1748371621487,1.96144361,178.44,178.41,21.12007991]
[1748371621885,1.96144361,178.44,178.43,21.12007991]
[1748371622115,0.56041246,178.44,178.43,21.12007991]